fUST/lending_fUST_20250517
["ID","MTS","AMOUNT","RATE_DAILY","PERIOD"]
[361329444,1747479051190,-846.01,0.00014522,2]
[361329445,1747479051199,-450.0,0.00014657,2]
[361329446,1747479051209,-450.0,0.00014657,2]
[361329447,1747479051218,-450.0,0.00014657,2]
[361329448,1747479051227,-1568.98,0.00014657,2]
[361329449,1747479051236,-556.86,0.00014657,2]
[361329450,1747479051246,-1185.79,0.00014657,2]
[361329451,1747479051256,-450.0,0.00014657,2]
[361329452,1747479051267,-450.0,0.00014657,2]
[361329453,1747479051276,-335.26162022,0.00014657,2]
[361329454,1747479051285,-450.0,0.00014657,2]
[361329455,1747479051295,-450.0,0.00014657,2]
[361329456,1747479051304,-500.0,0.00014657,2]
[361329457,1747479051313,-460.11,0.00014657,2]
[361329458,1747479051323,-450.0,0.00014657,2]
[361329459,1747479051332,-450.0,0.00014657,2]
[361329460,1747479051341,-450.0,0.00014657,2]
[361329461,1747479051350,-450.0,0.00014657,2]
[361329462,1747479051359,-575.15,0.00014657,2]
[361329463,1747479051369,-472.06,0.00014657,2]
[361329464,1747479051378,-450.0,0.00014657,2]
[361329465,1747479051387,-450.0,0.00014657,2]
[361329466,1747479051396,-450.0,0.00014657,2]
[361329467,1747479051406,-450.0,0.00014657,2]
[361329468,1747479051415,-668.8,0.00014657,2]
[361329469,1747479051424,-450.0,0.00014657,2]
[361329470,1747479051433,-450.0,0.00014657,2]
[361329471,1747479051442,-450.0,0.00014657,2]
[361329472,1747479051451,-450.0,0.00014657,2]
[361329473,1747479051460,-450.0,0.00014657,2]
[361329474,1747479051469,-450.0,0.00014657,2]
[361329475,1747479051478,-450.0,0.00014657,2]
[361329476,1747479051488,-450.0,0.00014657,2]
[361329477,1747479051498,-615.03,0.00014657,2]
[361329478,1747479051507,-450.0,0.00014657,2]
[361329479,1747479051516,-859.34,0.00014657,2]
[361329480,1747479051525,-450.0,0.00014657,2]
[361329481,1747479051535,-450.0,0.00014657,2]
[361329482,1747479051545,-854.7,0.00014657,2]
[361329483,1747479051554,-450.0,0.00014657,2]
[361329484,1747479051564,-324.94357307,0.00014657,2]
[361329485,1747479051573,-1500.0,0.00014768,2]
[361329486,1747479051582,-1500.0,0.00014768,2]
[361329487,1747479051591,-1500.0,0.00014768,2]
[361329488,1747479051601,-1500.0,0.00014768,2]
[361329489,1747479051609,-1500.0,0.00014768,2]
[361329490,1747479051619,-450.0,0.00014794,2]
[361329491,1747479051628,-450.0,0.00014794,2]
[361329492,1747479051638,-450.0,0.00014794,2]
[361329493,1747479051647,-1568.98,0.00014794,2]
[361329494,1747479051657,-556.86,0.00014794,2]
[361329495,1747479051666,-1185.79,0.00014794,2]
[361329496,1747479051681,-229.32,0.00014794,2]
[361329497,1747479051691,-450.0,0.00014794,2]
[361329498,1747479051702,-460.11,0.00014794,2]
[361329499,1747479051712,-220.14,0.00014794,2]
[361329500,1747479051722,-450.0,0.00014794,2]
[361329501,1747479051731,-450.0,0.00014794,2]
[361329502,1747479051741,-277.14,0.00014794,2]
[361329503,1747479051751,-588.0,0.00014794,2]
[361329504,1747479051760,-450.0,0.00014794,2]
[361329505,1747479051769,-668.8,0.00014794,2]
[361329506,1747479051780,-450.0,0.00014794,2]
[361329507,1747479051790,-450.0,0.00014794,2]
[361329508,1747479051800,-615.03,0.00014794,2]
[361329509,1747479051809,-450.0,0.00014794,2]
[361329510,1747479051818,-859.34,0.00014794,2]
[361329511,1747479051827,-450.0,0.00014794,2]
[361329512,1747479051837,-854.7,0.00014794,2]
[361329513,1747479051846,-1016.04,0.00014795,2]
[361329514,1747479051855,-3911.42139902,0.000149,2]
[361329515,1747479051864,-450.0,0.00014931,2]
[361329516,1747479051874,-450.0,0.00014931,2]
[361329517,1747479051883,-450.0,0.00014931,2]
[361329518,1747479051893,-1568.98,0.00014931,2]
[361329519,1747479051902,-556.86,0.00014931,2]
[361329520,1747479051911,-1185.79,0.00014931,2]
[361329521,1747479051921,-450.0,0.00014931,2]
[361329522,1747479051931,-460.11,0.00014931,2]
[361329523,1747479051941,-263.84,0.00014931,2]
[361329524,1747479051950,-450.0,0.00014931,2]
[361329525,1747479051959,-450.0,0.00014931,2]
[361329526,1747479051969,-668.8,0.00014931,2]
[361329527,1747479051978,-450.0,0.00014931,2]
[361329528,1747479051988,-450.0,0.00014931,2]
[361329529,1747479051998,-615.03,0.00014931,2]
[361329530,1747479052007,-450.0,0.00014931,2]
[361329531,1747479052017,-859.34,0.00014931,2]
[361329532,1747479052027,-450.0,0.00014931,2]
[361329533,1747479052036,-854.7,0.00014931,2]
[361329534,1747479052046,-404.0,0.0001496,2]
[361329535,1747479052055,-1016.04,0.00014999,2]
[361329536,1747479052065,-2000.0,0.00015,2]
[361329537,1747479052074,-160.0,0.00015,2]
[361329538,1747479052083,-1247.69,0.00015008,2]
[361329539,1747479052092,-846.01,0.00015008,2]
[361329540,1747479052102,-1500.0,0.00015009,2]
[361329541,1747479052111,-1500.0,0.00015018,2]
[361329542,1747479052120,-186.35833873,0.00015033,2]
[361329543,1747479052130,-450.0,0.00015068,2]
[361329544,1747479052139,-450.0,0.00015068,2]
[361329545,1747479052147,-450.0,0.00015068,2]
[361329546,1747479052157,-1568.98,0.00015068,2]
[361329547,1747479052166,-556.86,0.00015068,2]
[361329548,1747479052176,-1185.79,0.00015068,2]
[361329549,1747479052185,-450.0,0.00015068,2]
[361329550,1747479052194,-460.11,0.00015068,2]
[361329551,1747479052203,-450.0,0.00015068,2]
[361329552,1747479052213,-450.0,0.00015068,2]
[361329553,1747479052222,-668.8,0.00015068,2]
[361329554,1747479052231,-450.0,0.00015068,2]
[361329555,1747479052241,-450.0,0.00015068,2]
[361329556,1747479052251,-615.03,0.00015068,2]
[361329557,1747479052261,-450.0,0.00015068,2]
[361329558,1747479052270,-859.34,0.00015068,2]
[361329559,1747479052280,-450.0,0.00015068,2]
[361329560,1747479052290,-854.7,0.00015068,2]
[361329561,1747479052299,-450.0,0.00015205,2]
[361329562,1747479052309,-450.0,0.00015205,2]
[361329563,1747479052319,-450.0,0.00015205,2]
[361329564,1747479052328,-1568.98,0.00015205,2]
[361329565,1747479052338,-556.86,0.00015205,2]
[361329566,1747479052347,-1185.79,0.00015205,2]
[361329567,1747479052357,-450.0,0.00015205,2]
[361329568,1747479052366,-460.11,0.00015205,2]
[361329569,1747479052375,-450.0,0.00015205,2]
[361329570,1747479052385,-450.0,0.00015205,2]
[361329571,1747479052394,-668.8,0.00015205,2]
[361329572,1747479052403,-416.51,0.00015205,2]
[361329573,1747479052412,-551.97,0.00015205,2]
[361329574,1747479052421,-615.03,0.00015205,2]
[361329575,1747479052431,-274.23,0.00015205,2]
[361329576,1747479052440,-859.34,0.00015205,2]
[361329577,1747479052449,-450.0,0.00015205,2]
[361329578,1747479052458,-854.7,0.00015205,2]
[361329579,1747479052468,-1016.04,0.00015244,2]
[361329580,1747479052477,-3911.4213989,0.00015279,2]
[361329581,1747479052486,-2043.47124724,0.00015316,2]
[361329582,1747479052588,-2000.0,0.00015316,2]
[361329583,1747479052598,-2000.0,0.00015316,2]
[361329584,1747479052607,-2000.0,0.00015316,2]
[361329585,1747479052616,-680.55544505,0.00015316,2]
[361329586,1747479052626,-269.21,0.00015342,2]
[361329587,1747479052635,-450.0,0.00015342,2]
[361329588,1747479052643,-224.43,0.00015342,2]
[361329589,1747479052653,-1568.98,0.00015342,2]
[361329590,1747479052663,-556.86,0.00015342,2]
[361329591,1747479052680,-1185.79,0.00015342,2]
[361329592,1747479052695,-450.0,0.00015342,2]
[361329593,1747479052705,-460.11,0.00015342,2]
[361329594,1747479052715,-450.0,0.00015342,2]
[361329595,1747479052725,-404.05,0.00015342,2]
[361329596,1747479052734,-668.8,0.00015342,2]
[361329597,1747479052743,-615.03,0.00015342,2]
[361329598,1747479052752,-859.34,0.00015342,2]
[361329599,1747479052762,-428.81,0.00015342,2]
[361329600,1747479052772,-854.7,0.00015342,2]
[361329601,1747479052781,-1016.04,0.00015389,2]
[361329602,1747479052791,-1016.04,0.00015389,2]
[361329603,1747479052800,-1016.04,0.00015389,2]
[361329604,1747479052810,-582.3,0.00015479,2]
[361329605,1747479052819,-1568.98,0.00015479,2]
[361329606,1747479052829,-556.86,0.00015479,2]
[361329607,1747479052839,-1185.79,0.00015479,2]
[361329608,1747479052848,-291.66,0.00015479,2]
[361329609,1747479052858,-460.11,0.00015479,2]
[361329610,1747479052867,-450.0,0.00015479,2]
[361329611,1747479052876,-668.8,0.00015479,2]
[361329612,1747479052885,-615.03,0.00015479,2]
[361329613,1747479052894,-859.34,0.00015479,2]
[361329614,1747479052903,-854.7,0.00015479,2]
[361329615,1747479052913,-1247.69,0.0001548,2]
[361329616,1747479052927,-1247.69,0.0001548,2]
[361329617,1747479052937,-1247.69,0.0001548,2]
[361329618,1747479052947,-1247.69,0.0001548,2]
[361329619,1747479052956,-1247.84697092,0.0001548,2]
[361329620,1747479052965,-846.01,0.0001548,2]
[361329621,1747479052974,-846.01,0.0001548,2]
[361329622,1747479052984,-846.01,0.0001548,2]
[361329623,1747479052993,-846.01,0.0001548,2]
[361329624,1747479053003,-846.20243385,0.0001548,2]
[361329625,1747479053012,-1016.04,0.00015481,2]
[361329626,1747479053021,-2000.0,0.00015557,2]
[361329627,1747479053031,-601.44283072,0.00015566,2]
[361329628,1747479053040,-1568.98,0.00015616,2]
[361329629,1747479053049,-556.86,0.00015616,2]
[361329630,1747479053058,-1185.79,0.00015616,2]
[361329631,1747479053068,-460.11,0.00015616,2]
[361329632,1747479053077,-450.0,0.00015616,2]
[361329633,1747479053086,-668.8,0.00015616,2]
[361329634,1747479053096,-615.03,0.00015616,2]
[361329635,1747479053105,-859.34,0.00015616,2]
[361329636,1747479053114,-854.7,0.00015616,2]
[361329637,1747479053124,-3911.4213989,0.00015659,2]
[361329638,1747479053133,-1016.04,0.00015692,2]
[361329639,1747479053143,-1568.98,0.00015753,2]
[361329640,1747479053152,-556.86,0.00015753,2]
[361329641,1747479053162,-1185.79,0.00015753,2]
[361329642,1747479053171,-460.11,0.00015753,2]
[361329643,1747479053180,-450.0,0.00015753,2]
[361329644,1747479053189,-668.8,0.00015753,2]
[361329645,1747479053199,-615.03,0.00015753,2]
[361329646,1747479053208,-859.34,0.00015753,2]
[361329647,1747479053217,-854.7,0.00015753,2]
[361329648,1747479053226,-2500.0,0.00015864,2]
[361329649,1747479053235,-2500.0,0.00015864,2]
[361329650,1747479053245,-1809.81047999,0.00015864,2]
[361329651,1747479053253,-1568.98,0.0001589,2]
[361329652,1747479053263,-556.86,0.0001589,2]
[361329653,1747479053272,-1185.79,0.0001589,2]
[361329654,1747479053281,-460.11,0.0001589,2]
[361329655,1747479053290,-450.0,0.0001589,2]
[361329656,1747479053299,-668.8,0.0001589,2]
[361329657,1747479053308,-615.03,0.0001589,2]
[361329658,1747479053318,-859.34,0.0001589,2]
[361329659,1747479053327,-854.7,0.0001589,2]
[361329660,1747479053336,-1016.04,0.00015899,2]
[361329661,1747479053345,-1016.04,0.00015999,2]
[361329662,1747479053354,-1016.04,0.00015999,2]
[361329663,1747479053363,-1016.04,0.00015999,2]
[361329664,1747479053372,-1016.04,0.00015999,2]
[361329665,1747479053381,-1016.04,0.00015999,2]
[361329666,1747479053390,-1016.04,0.00015999,2]
[361329667,1747479053399,-1016.04,0.00015999,2]
[361329668,1747479053408,-1016.04,0.00015999,2]
[361329669,1747479053417,-1016.1157388,0.00015999,2]
[361329670,1747479053435,-2000.0,0.00016,2]
[361329671,1747479053451,-5003.3734551,0.00016,2]
[361329672,1747479053465,-1568.98,0.00016027,2]
[361329673,1747479053480,-556.86,0.00016027,2]
[361329674,1747479053497,-1185.79,0.00016027,2]
[361329675,1747479053513,-460.11,0.00016027,2]
[361329676,1747479053528,-450.0,0.00016027,2]
[361329677,1747479053543,-668.8,0.00016027,2]
[361329678,1747479053557,-615.03,0.00016027,2]
[361329679,1747479053572,-859.34,0.00016027,2]
[361329680,1747479053586,-854.7,0.00016027,2]
[361329681,1747479053599,-3911.4213989,0.00016038,2]
[361329682,1747479053612,-2500.0,0.00016105,2]
[361329683,1747479053627,-1568.98,0.00016164,2]
[361329684,1747479053643,-556.86,0.00016164,2]
[361329685,1747479053660,-1185.79,0.00016164,2]
[361329686,1747479053675,-460.11,0.00016164,2]
[361329687,1747479053686,-450.0,0.00016164,2]
[361329688,1747479053700,-668.8,0.00016164,2]
[361329689,1747479053717,-615.03,0.00016164,2]
[361329690,1747479053729,-859.34,0.00016164,2]
[361329691,1747479053742,-854.7,0.00016164,2]
[361329692,1747479053758,-151.0,0.000163,2]
[361329693,1747479053770,-1568.98,0.00016301,2]
[361329694,1747479053783,-556.86,0.00016301,2]
[361329695,1747479053795,-1185.79,0.00016301,2]
[361329696,1747479053809,-460.11,0.00016301,2]
[361329697,1747479053822,-450.0,0.00016301,2]
[361329698,1747479053834,-668.8,0.00016301,2]
[361329699,1747479053847,-615.03,0.00016301,2]
[361329700,1747479053859,-859.34,0.00016301,2]
[361329701,1747479053872,-854.7,0.00016301,2]
[361329702,1747479053885,-176.558,0.00016352,2]
[361329703,1747479053897,-1638.24278703,0.00016412,2]
[361329704,1747479053910,-3000.0,0.00016412,2]
[361329705,1747479053923,-3911.4213989,0.00016417,2]
[361329706,1747479053936,-500.0,0.00016438,2]
[361329707,1747479053950,-1568.98,0.00016438,2]
[361329708,1747479053963,-556.86,0.00016438,2]
[361329709,1747479053975,-1185.79,0.00016438,2]
[361329710,1747479053988,-460.11,0.00016438,2]
[361329711,1747479054000,-202.56275741,0.00016438,2]
[361329712,1747479054013,-450.0,0.00016438,2]
[361329713,1747479054025,-668.8,0.00016438,2]
[361329714,1747479054038,-615.03,0.00016438,2]
[361329715,1747479054050,-859.34,0.00016438,2]
[361329716,1747479054063,-854.7,0.00016438,2]
[361329717,1747479054075,-1226.67331,0.00016438,2]
[361329718,1747479054088,-1226.67331,0.00016438,2]
[361329719,1747479054100,-500.29620559,0.00016438,2]
[361329720,1747479054113,-1226.67331,0.0001648,2]
[361329721,1747479054126,-1226.67331,0.0001648,2]
[361329722,1747479054138,-1568.98,0.00016575,2]
[361329723,1747479054151,-556.86,0.00016575,2]
[361329724,1747479054164,-1185.79,0.00016575,2]
[361329725,1747479054177,-460.11,0.00016575,2]
[361329726,1747479054190,-450.0,0.00016575,2]
[361329727,1747479054204,-668.8,0.00016575,2]
[361329728,1747479054217,-615.03,0.00016575,2]
[361329729,1747479054229,-859.34,0.00016575,2]
[361329730,1747479054241,-854.7,0.00016575,2]
[361329731,1747479054254,-151.0,0.000166,2]
[361329732,1747479054266,-316.6080693,0.00016603,2]
[361329733,1747479054280,-3000.0,0.00016653,2]
[361329734,1747479054293,-1568.98,0.00016712,2]
[361329735,1747479054306,-556.86,0.00016712,2]
[361329736,1747479054318,-1185.79,0.00016712,2]
[361329737,1747479054331,-460.11,0.00016712,2]
[361329738,1747479054344,-450.0,0.00016712,2]
[361329739,1747479054356,-668.8,0.00016712,2]
[361329740,1747479054368,-615.03,0.00016712,2]
[361329741,1747479054381,-859.34,0.00016712,2]
[361329742,1747479054394,-854.7,0.00016712,2]
[361329743,1747479054408,-217.818153,0.00016796,2]
[361329744,1747479054420,-217.818153,0.00016796,2]
[361329745,1747479054432,-3911.4213989,0.00016797,2]
[361329746,1747479054445,-1569.01,0.00016849,2]
[361329747,1747479054458,-557.07,0.00016849,2]
[361329748,1747479054471,-1185.85995397,0.00016849,2]
[361329749,1747479054482,-460.1848286,0.00016849,2]
[361329750,1747479054491,-311.11,0.00016849,2]
[361329751,1747479054500,-668.99,0.00016849,2]
[361329752,1747479054510,-615.16,0.00016849,2]
[361329753,1747479054518,-859.44889198,0.00016849,2]
[361329754,1747479054528,-854.83,0.00016849,2]
[361329755,1747479054694,-155.8317898,0.00016887,2]
[361329756,1747479054711,-2204.24923198,0.000169,2]
[361329757,1747479054721,-3500.0,0.0001696,2]
[361329758,1747479054730,-58466.64561578,0.00016972,2]
[361329759,1747479055079,-450.0,0.00013698,2]
[361329760,1747479055088,-330.893095,0.00013698,2]
[361329761,1747479055098,-450.0,0.00013835,2]
[361329762,1747479055108,-257.24407662,0.00013972,2]
[361329763,1747479055117,-450.0,0.00014246,2]
[361329764,1747479055127,-239.34490411,0.00014383,2]
[361329765,1747479055285,-450.0,0.00013698,2]
[361329766,1747479055294,-450.0,0.00013698,2]
[361329767,1747479055304,-450.0,0.00013698,2]
[361329768,1747479055313,-450.0,0.00013835,2]
[361329769,1747479055322,-450.0,0.00013835,2]
[361329770,1747479055332,-450.0,0.00013835,2]
[361329771,1747479055341,-450.0,0.00013972,2]
[361329772,1747479055350,-584.41815282,0.00013972,2]
[361329773,1747479055359,-450.0,0.00013972,2]
[361329774,1747479055368,-450.0,0.00014109,2]
[361329775,1747479055378,-450.0,0.00014246,2]
[361329776,1747479055388,-210.65509589,0.00014383,2]
[361329777,1747479055397,-450.0,0.00014383,2]
[361329778,1747479055407,-450.0,0.0001452,2]
[361329779,1747479055417,-450.0,0.0001452,2]
[361329780,1747479055426,-436.86,0.0001452,2]
[361329781,1747479055436,-450.0,0.00014657,2]
[361329782,1747479055445,-450.0,0.00014657,2]
[361329783,1747479055454,-450.0,0.00014794,2]
[361329784,1747479055463,-328.05,0.00014794,2]
[361329785,1747479055473,-450.0,0.00014931,2]
[361329786,1747479055482,-450.0,0.00015068,2]
[361329787,1747479055492,-450.0,0.00015205,2]
[361329788,1747479055502,-450.0,0.00015342,2]
[361329789,1747479055511,-450.0,0.00015479,2]
[361329790,1747479055520,-386.93,0.00015616,2]
[361329791,1747479055530,-151.0,0.00016412,2]
[361329792,1747479055539,-11741.93888198,0.00016972,2]
[361329793,1747479055633,-1063.75299505,0.00013561,2]
[361329794,1747479249863,1004.44946768,0.00027397,120]
[361329795,1747479294191,1057.56093575,0.00027397,120]
[361329797,1747479411805,49171.40198069,0.00027397,120]
[361329798,1747479463798,542.6,0.00027397,120]
[361329800,1747479783656,509.0,0.00012,2]
[361329803,1747480058314,204.489722,0.00027397,120]
[361329841,1747480232129,-5000.0,0.00012767,2]
[361329843,1747480232139,-300.0,0.00013696,2]
[361329845,1747480232148,-500.0,0.00013697,2]
[361329847,1747480232157,-500.0,0.00013697,2]
[361329848,1747480232167,-547.20635175,0.00013697,2]
[361329849,1747480232177,-500.0,0.00013697,2]
[361329850,1747480232186,-500.0,0.00013697,2]
[361329851,1747480232196,-454.74023716,0.00013697,2]
[361329852,1747480232206,-500.0,0.00013697,2]
[361329853,1747480232216,-500.0,0.00013697,2]
[361329854,1747480232226,-500.0,0.00013697,2]
[361329855,1747480232236,-500.0,0.00013697,2]
[361329856,1747480232246,-103.4531152,0.00013697,2]
[361329857,1747480232271,-504.5539423,0.00013697,2]
[361329858,1747480232281,-633.74695956,0.00013697,2]
[361329859,1747480232291,-500.0,0.00013697,2]
[361329860,1747480232301,-286.27482896,0.00013697,2]
[361329861,1747480232311,-500.0,0.00013697,2]
[361329862,1747480232320,-500.0,0.00013697,2]
[361329863,1747480232330,-500.0,0.00013697,2]
[361329864,1747480232339,-500.0,0.00013697,2]
[361329866,1747480232349,-425.67988724,0.00013698,2]
[361329867,1747480232359,-450.0,0.00013698,2]
[361329868,1747480232369,-450.0,0.00013698,2]
[361329869,1747480232378,-450.0,0.00013698,2]
[361329870,1747480232388,-450.0,0.00013698,2]
[361329871,1747480232397,-450.0,0.00013698,2]
[361329872,1747480232407,-450.0,0.00013698,2]
[361329873,1747480232416,-450.0,0.00013698,2]
[361329874,1747480232426,-450.0,0.00013698,2]
[361329875,1747480232435,-450.0,0.00013698,2]
[361329876,1747480232444,-450.0,0.00013698,2]
[361329877,1747480232454,-200.0,0.00013698,2]
[361329878,1747480232463,-450.0,0.00013698,2]
[361329879,1747480232471,-450.0,0.00013698,2]
[361329880,1747480232481,-536.37221837,0.00013698,2]
[361329881,1747480232490,-450.0,0.00013698,2]
[361329882,1747480232499,-450.0,0.00013698,2]
[361329883,1747480232508,-334.52,0.00013698,2]
[361329884,1747480232518,-450.0,0.00013698,2]
[361329885,1747480232528,-450.0,0.00013698,2]
[361329886,1747480232538,-500.0,0.00013698,2]
[361329887,1747480232550,-450.0,0.00013698,2]
[361329888,1747480232560,-450.0,0.00013698,2]
[361329889,1747480232569,-450.0,0.00013698,2]
[361329890,1747480232578,-340.39,0.00013698,2]
[361329891,1747480232587,-203.89717895,0.00013698,2]
[361329892,1747480232609,-343.53282105,0.00013698,2]
[361329893,1747480232618,-450.0,0.00013698,2]
[361329894,1747480232628,-450.0,0.00013698,2]
[361329895,1747480232637,-450.0,0.00013698,2]
[361329896,1747480232647,-450.0,0.00013698,2]
[361329897,1747480232657,-319.38037355,0.00013698,2]
[361329898,1747480233543,500.0,0.00027397,120]
[361329924,1747480237989,-1745.23241068,0.00013561,2]
[361329925,1747480237999,-130.61962645,0.00013698,2]
[361329926,1747480238009,-450.0,0.00013698,2]
[361329927,1747480238018,-450.0,0.00013698,2]
[361329928,1747480238029,-450.0,0.00013698,2]
[361329929,1747480238038,-450.0,0.00013698,2]
[361329930,1747480238048,-278.26133039,0.00013698,2]
[361329931,1747480238061,-171.73866961,0.00013698,2]
[361329932,1747480238070,-426.67169967,0.00013698,2]
[361329933,1747480238082,-23.32830033,0.00013698,2]
[361329934,1747480238091,-450.0,0.00013698,2]
[361329935,1747480238100,-539.47984706,0.00013698,2]
[361329936,1747480238110,-450.0,0.00013698,2]
[361329938,1747480238119,-450.0,0.00013698,2]
[361329940,1747480238128,-450.0,0.00013698,2]
[361329941,1747480238138,-450.0,0.00013698,2]
[361329942,1747480238147,-400.0,0.00013698,2]
[361329943,1747480238157,-35.70008457,0.00013698,2]
[361329948,1747480238170,-342.65115849,0.00013698,2]
[361329951,1747480238179,-450.0,0.00013698,2]
[361329954,1747480238189,-450.0,0.00013698,2]
[361329957,1747480238198,-596.2,0.00013698,2]
[361329959,1747480238207,-450.0,0.00013698,2]
[361329961,1747480238217,-450.0,0.00013698,2]
[361329963,1747480238225,-450.0,0.00013698,2]
[361329965,1747480238235,-300.0,0.00013698,2]
[361329967,1747480238244,-450.0,0.00013698,2]
[361329969,1747480238253,-300.0,0.00013698,2]
[361329971,1747480238263,-450.0,0.00013698,2]
[361329973,1747480238272,-450.0,0.00013698,2]
[361329975,1747480238283,-450.0,0.00013698,2]
[361329977,1747480238292,-450.0,0.00013698,2]
[361329979,1747480238301,-300.0,0.00013698,2]
[361329981,1747480238311,-450.0,0.00013698,2]
[361329983,1747480238320,-450.0,0.00013698,2]
[361329984,1747480238330,-453.08,0.00013698,2]
[361329987,1747480238340,-300.0,0.00013698,2]
[361329989,1747480238350,-300.0,0.00013698,2]
[361329991,1747480238359,-300.0,0.00013698,2]
[361329993,1747480238368,-450.0,0.00013698,2]
[361329995,1747480238378,-450.0,0.00013698,2]
[361329996,1747480238388,-450.0,0.00013698,2]
[361329998,1747480238397,-450.0,0.00013698,2]
[361330000,1747480238406,-450.0,0.00013698,2]
[361330002,1747480238415,-450.0,0.00013698,2]
[361330004,1747480238425,-450.0,0.00013698,2]
[361330006,1747480238434,-450.0,0.00013698,2]
[361330008,1747480238443,-394.71179927,0.00013698,2]
[361330010,1747480238453,-450.0,0.00013698,2]
[361330012,1747480238462,-450.0,0.00013698,2]
[361330013,1747480238470,-450.0,0.00013698,2]
[361330014,1747480238480,-450.0,0.00013698,2]
[361330015,1747480238489,-492.44,0.00013698,2]
[361330016,1747480238499,-450.0,0.00013698,2]
[361330017,1747480238508,-450.0,0.00013698,2]
[361330018,1747480238518,-350.0,0.00013698,2]
[361330019,1747480238529,-513.64302516,0.00013698,2]
[361330020,1747480238540,-534.08782209,0.00013698,2]
[361330021,1747480238554,-450.0,0.00013698,2]
[361330022,1747480238563,-450.0,0.00013698,2]
[361330023,1747480238572,-450.0,0.00013698,2]
[361330024,1747480238581,-450.0,0.00013698,2]
[361330025,1747480238591,-737.65,0.00013698,2]
[361330026,1747480238600,-450.0,0.00013698,2]
[361330027,1747480238609,-450.0,0.00013698,2]
[361330028,1747480238618,-450.0,0.00013698,2]
[361330029,1747480238628,-450.0,0.00013698,2]
[361330030,1747480238637,-350.0,0.00013698,2]
[361330031,1747480238646,-450.0,0.00013698,2]
[361330032,1747480238655,-450.0,0.00013698,2]
[361330033,1747480238665,-450.0,0.00013698,2]
[361330034,1747480238674,-1615.31,0.00013698,2]
[361330035,1747480238683,-357.86,0.00013698,2]
[361330036,1747480238693,-450.0,0.00013698,2]
[361330037,1747480238702,-450.0,0.00013698,2]
[361330038,1747480238711,-450.0,0.00013698,2]
[361330039,1747480238721,-450.0,0.00013698,2]
[361330040,1747480238731,-283.34535092,0.00013698,2]
[361330041,1747480238743,-166.65464908,0.00013698,2]
[361330042,1747480238753,-450.0,0.00013698,2]
[361330043,1747480238762,-528.84,0.00013698,2]
[361330044,1747480238771,-368.08401744,0.00013698,2]
[361330054,1747480240281,-81.91598256,0.00013698,2]
[361330055,1747480240290,-450.0,0.00013698,2]
[361330056,1747480240299,-450.0,0.00013698,2]
[361330057,1747480240308,-400.0,0.00013698,2]
[361330058,1747480240318,-400.0,0.00013698,2]
[361330059,1747480240327,-450.0,0.00013698,2]
[361330060,1747480240337,-450.0,0.00013698,2]
[361330061,1747480240346,-450.0,0.00013698,2]